Workbook

Sheet Лист1
A1: класс | B1: 2016-01-20 | C1: 2016-09-21 | D1: 2016-09-22 | E1: 2016-09-23 | F1: 2016-09-24 | G1: общий
A2: 1а | B2: 77.4 | C2: 999 | D2: 210.7 | E2: 252 | F2: 25 | G2: =B2+C2+D2+E2+F2 -> 1564.1
A3: 1б | B3: 1058.84 | C3: 124 | D3: 168.3 | E3: 198 | F3: 191 | G3: =B3+C3+D3+E3+F3 -> 1740.14
A4: 1в | B4: 14.3 | C4: 36.6 | D4: 194.7 | G4: =B4+C4+D4 -> 245.6
A5: 1г | B5: 284.7 | C5: 475.5 | D5: 48.5 | E5: 8 | G5: =B5+C5+D5+E5+F5 -> 816.7
A6: 1д | B6: 145.8 | C6: 75.2 | D6: 45.8 | G6: =B6+C6+D6 -> 266.8
A7: 1е | B7: 50.4 | C7: 212.1 | D7: 61.5 | G7: =B7+C7+D7 -> 324
A8: 2а | C8: 119.4 | D8: 25.4 | F8: 7 | G8: =C8+D8+F8 -> 151.8
A9: 2б | B9: 64.4 | C9: 81.5 | D9: 200.2 | E9: 49 | G9: =B9+C9+D9+E9 -> 395.1
A10: 2в | B10: 161.4 | C10: 203.3 | D10: 274.1 | G10: =B10+C10+D10 -> 638.8
A11: 2г | B11: 99.7 | C11: 315.9 | D11: 50.4 | G11: =B11+C11+D11 -> 466
A12: 2д | B12: 167 | C12: 73.8 | D12: 22.1 | G12: =B12+C12+D12 -> 262.9
A13: 2е | B13: 13.6 | C13: 109.1 | D13: 28.7 | E13: 6.9 | G13: =B13+C13+D13+E13 -> 158.3
A14: 3а | B14: 64.6 | C14: 223 | D14: 197.3 | F14: 7 | G14: =B14+C14+D14+F14 -> 491.9
A15: 3б | B15: 82.3 | C15: 133.7 | D15: 69 | E15: 108.6 | F15: 32 | G15: =B15+C15+D15+E15+F15 -> 425.6
A16: 3в | B16: 337.12 | C16: 199.1 | D16: 63.5 | E16: 6 | G16: =B16+C16+D16+E16 -> 605.72
A17: 3г | C17: 33.1 | D17: 22.6 | E17: 6.5 | G17: =C17+D17+E17 -> 62.2
A18: 3д | B18: 22.4 | C18: 142 | D18: 462.1 | E18: 168.4 | F18: 334.6 | G18: =B18+C18+D18+E18+F18 -> 1129.5
A19: 3е | B19: 36.6 | C19: 29.3 | D19: 57.1 | E19: 15.3 | F19: 2 | G19: =B19+C19+D19+E19+F19 -> 140.3
A20: 3с | E20: 15 | G20: =E20 -> 15
A21: 4а | B21: 37.6 | C21: 116.4 | D21: 190.1 | F21: 14 | G21: =B21+C21+D21+F21 -> 358.1
A22: 4б | B22: 19.2 | C22: 50.5 | D22: 50.9 | G22: =B22+C22+D22 -> 120.6
A23: 4в | B23: 3.2 | C23: 276.6 | D23: 107.6 | G23: =B23+C23+D23 -> 387.4
A24: 4г | B24: 5 | C24: 69.7 | D24: 47.8 | G24: =B24+C24+D24 -> 122.5
A25: 4е | B25: 32 | C25: 58.6 | D25: 26.1 | E25: 6.9 | G25: =B25+C25+D25+E25 -> 123.6
A26: 5а | C26: 306.2 | D26: 468.5 | E26: 36.8 | F26: 213 | G26: =C26+D26+E26+F26 -> 1024.5
A27: 5б | B27: 73.2 | C27: 808.1 | D27: 75.5 | E27: 18.8 | G27: =B27+C27+D27+E27 -> 975.6
A28: 5в | B28: 58 | C28: 502.8 | D28: 218.5 | E28: 11 | G28: =B28+C28+D28+E28 -> 790.3
A29: 5г | B29: 48.7 | C29: 372.5 | D29: 58.5 | F29: 6.5 | G29: =B29+C29+D29+F29 -> 486.2
A30: 5д | B30: 83.3 | C30: 9.8 | D30: 11 | G30: =B30+C30+D30 -> 104.1
A31: 5е | B31: 263.4 | C31: 447.6 | D31: 88.9 | E31: 30.2 | F31: 117 | G31: =B31+C31+D31+E31+F31 -> 947.1
A32: 6а | B32: 53.8 | C32: 109.3 | D32: 29.4 | E32: 61.1 | F32: 17 | G32: =B32+C32+D32+E32+F32 -> 270.6
A33: 6б | B33: 31.3 | C33: 227.8 | D33: 318.2 | E33: 4.8 | F33: 22 | G33: =B33+C33+D33+E33+F33 -> 604.1
A34: 6в | B34: 262.5 | C34: 1429.6 | D34: 492.3 | E34: 7 | G34: =B34+C34+D34+E34 -> 2191.4
A35: 6г | B35: 78.5 | C35: 34.6 | D35: 55.4 | E35: 28.5 | F35: 52.5 | G35: =B35+C35+D35+E35+F35 -> 249.5
A36: 6д | B36: 64.1 | C36: 90.1 | D36: 50.9 | G36: =B36+C36+D36 -> 205.1
A37: 7а | B37: 6.7 | C37: 50.7 | D37: 82.6 | E37: 1.7 | G37: =B37+C37+D37+E37 -> 141.7
A38: 7б | B38: 11.8 | C38: 63.9 | D38: 101.9 | E38: 53.7 | F38: 47 | G38: =B38+C38+D38+E38+F38 -> 278.3
A39: 7в | B39: 103.7 | C39: 175.3 | D39: 99.7 | E39: 7.6 | F39: 19.7 | G39: =B39+C39+D39+E39+F39 -> 406
A40: 7г | B40: 234.9 | C40: 69 | D40: 173.1 | G40: =B40+C40+D40 -> 477
A41: 7д | B41: 3.7 | C41: 41.7 | D41: 132.4 | G41: =B41+C41+D41 -> 177.8
A42: 7с | B42: 97 | C42: 126.9 | G42: =B42+C42 -> 223.9
A43: 8а | B43: 21.4 | D43: 50.1 | G43: =B43+D43 -> 71.5
A44: 8б | B44: 77.5 | C44: 35 | D44: 91.1 | E44: 59.7 | G44: =B44+C44+D44+E44 -> 263.3
A45: 8в | B45: 72 | C45: 308.6 | D45: 60.8 | F45: 1 | G45: =B45+C45+F45+D45 -> 442.4
A46: 8г | B46: 5.9 | C46: 3.6 | D46: 6.8 | E46: 4 | G46: =B46+C46+D46+E46 -> 20.3
A47: 8д | C47: 30.3 | D47: 23.1 | E47: 10.2 | G47: =C47+D47+E47 -> 63.6
A48: 8с | C48: 15 | D48: 40.2 | G48: =C48+D48 -> 55.2
A49: 9а | B49: 25 | C49: 32.7 | D49: 5.8 | F49: 18 | G49: =B49+C49+D49+F49 -> 81.5
A50: 9б | B50: 98.4 | C50: 159.2 | D50: 37.9 | F50: 1 | G50: =B50+C50+D50+F50 -> 296.5
A51: 9в | B51: 17.8 | C51: 62.5 | D51: 122.9 | E51: 12 | F51: 95 | G51: =B51+C51+D51+E51+F51 -> 310.2
A52: 10а | B52: 6.4 | C52: 26.2 | D52: 110.9 | G52: =B52+C52+D52 -> 143.5
A53: 10б | B53: 10.2 | C53: 92.1 | D53: 83.1 | G53: =B53+C53+D53 -> 185.4
A54: 11а | C54: 1.8 | D54: 2.2 | G54: =C54+D54 -> 4
A55: 11б | C55: 18.9 | D55: 5.7 | G55: =C55+D55 -> 24.6
A56: итог | B56: =SUM(B2:B55) -> 4586.76 | C56: 9809.2 | D56: 5721.9 | E56: 1187.7 | F56: 1222.3 | G56: 22527.86 | H56: =SUM(B56:F56) -> 22527.86

Sheet Лист2

Sheet Лист3
